﻿Department family,Entity,Date,Expense type,Expense area,Supplier,Transaction number,Amount,VAT registration number
Dept of Health,MHRA,01/03/2023,Central Training,Corporate,Cabinet Office,3825909,"25,608.00",888801080
Dept of Health,MHRA,01/03/2023,Application Services and Maintenance,Digital and Technology,Cloud Kubed Ltd,CN-0079,"-78,931.15",383555470
Dept of Health,MHRA,01/03/2023,Application Services and Maintenance,Digital and Technology,Cloud Kubed Ltd,INV-0078,"78,931.15",383555470
Dept of Health,MHRA,01/03/2023,Application Services and Maintenance,Digital and Technology,Cloud Kubed Ltd,INV-0080,"131,775.96",383555470
Dept of Health,MHRA,08/03/2023,Software & Licences,Digital and Technology,Clearvision (CM) 2005 Ltd,cvuk20459,"57,565.87",881364801
Dept of Health,MHRA,08/03/2023,Assets Under Construction - Land & Buildings,Corporate,Enbloc Ltd,2629,"44,271.24",768254789
Dept of Health,MHRA,08/03/2023,Contracted Out Services Miscellaneous,Digital and Technology,NTT Data UK Ltd,5027232,"77,912.64",159334590
Dept of Health,MHRA,13/03/2023,Contracted Out Services Miscellaneous,Digital and Technology,Adatis Consulting Limited,15517,"105,655.95",887761165
Dept of Health,MHRA,13/03/2023,Contracted Out Services Miscellaneous,Digital and Technology,Adatis Consulting Limited,15587,"103,402.89",887761165
Dept of Health,MHRA,13/03/2023,Contracted Out Services Miscellaneous,Digital and Technology,Adatis Consulting Limited,15681,"101,001.00",887761165
Dept of Health,MHRA,13/03/2023,Software & Licences,Digital and Technology,Blue Prism Limited,INV28881,"138,240.00",241843906
Dept of Health,MHRA,13/03/2023,Travel & Subsistence,Corporate,Clarity Travel Management,MHRA0082,"56,648.17",197694731
Dept of Health,MHRA,13/03/2023,Infrastructure Services and Maintenance,Safety and Surveillance,Fat Media Limited,217-092,"106,406.40",280066907
Dept of Health,MHRA,13/03/2023,Application Services and Maintenance,Safety and Surveillance,Fat Media Limited,218-102,"60,000.00",280066907
Dept of Health,MHRA,13/03/2023,Solicitors,Enablement,Government Legal Department,A3814,"266,700.00",888823066
Dept of Health,MHRA,13/03/2023,Lab Equipment Repairs and Maintenance,"Scientific, Research and Innovation",Labman Automation Limited,6427,"28,500.00",602099169
Dept of Health,MHRA,13/03/2023,Library & Periodical Subscriptions,Enablement,LM Prenax UK,10963785,"29,290.37",356947157
Dept of Health,MHRA,15/03/2023,Assets Under Construction - Other Costs,Corporate,John Bradshaw Ltd,163727,"64,243.84",293993105
Dept of Health,MHRA,15/03/2023,Infrastructure Services and Maintenance,Digital and Technology,NSC Global Ltd,SI-UK-161400,"26,718.82",645777591
Dept of Health,MHRA,15/03/2023,Infrastructure Services and Maintenance,Digital and Technology,NSC Global Ltd,SI-UK-161404,"26,718.82",645777591
Dept of Health,MHRA,15/03/2023,Infrastructure Services and Maintenance,Digital and Technology,NSC Global Ltd,SI-UK-161414,"26,593.30",645777591
Dept of Health,MHRA,15/03/2023,Infrastructure Services and Maintenance,Digital and Technology,NSC Global Ltd,SI-UK-161415,"26,593.30",645777591
Dept of Health,MHRA,15/03/2023,Infrastructure Services and Maintenance,Digital and Technology,NTT Data UK Ltd,4024193,"153,795.96",159334590
Dept of Health,MHRA,15/03/2023,Infrastructure Services and Maintenance,Digital and Technology,NTT Data UK Ltd,4024195,"40,827.54",159334590
Dept of Health,MHRA,15/03/2023,Assets Under Construction - Other Costs,Corporate,SciQuip Ltd,49826,"28,522.80",781775487
Dept of Health,MHRA,20/03/2023,Assets Under Construction - IT Equipment,Corporate,Actemium Automation Ltd,2677501791,"34,949.16",522491755
Dept of Health,MHRA,20/03/2023,Travel & Subsistence,Corporate,Clarity Travel Management,MHRA0083,"73,683.62",197694731
Dept of Health,MHRA,20/03/2023,"Advertising, publicity & promotion",Enablement,Health Unlimited Limited,170406287,"66,021.59",156008918
Dept of Health,MHRA,20/03/2023,"Advertising, publicity & promotion",Enablement,Health Unlimited Limited,170406288,"71,918.11",156008918
Dept of Health,MHRA,20/03/2023,Infrastructure Services and Maintenance,Digital and Technology,NTT Data UK Ltd,4024194,"39,908.52",159334590
Dept of Health,MHRA,20/03/2023,Assets Under Construction - Plant & Equipment,Corporate,VWR International,5065342338,"43,498.92",823853225
Dept of Health,MHRA,22/03/2023,Application Services and Maintenance,Digital and Technology,Greenwood Campbell Ltd,I3008,"61,987.20",978404972
Dept of Health,MHRA,22/03/2023,"Advertising, publicity & promotion",Enablement,Health Unlimited Limited,170406263,"49,169.00",156008918
Dept of Health,MHRA,22/03/2023,Infrastructure Services and Maintenance,Digital and Technology,Hewlett Packard Enterprise,6122112,"34,276.00",314149679
Dept of Health,MHRA,22/03/2023,Infrastructure Services and Maintenance,Digital and Technology,NTT Data UK Ltd,5027255,"296,294.32",159334590
Dept of Health,MHRA,22/03/2023,Infrastructure Services and Maintenance,Digital and Technology,The Networking People (TNP) Ltd,SI112763,"120,258.79",116532927
Dept of Health,MHRA,27/03/2023,Contracted Out Services Miscellaneous,Digital and Technology,NTT Data UK Ltd,4024198,"34,752.00",159334590
Dept of Health,MHRA,27/03/2023,Infrastructure Services and Maintenance,Digital and Technology,NTT Data UK Ltd,4024415,"153,795.96",159334590
Dept of Health,MHRA,27/03/2023,Infrastructure Services and Maintenance,Digital and Technology,NTT Data UK Ltd,4024416,"38,300.00",159334590
Dept of Health,MHRA,27/03/2023,Infrastructure Services and Maintenance,Digital and Technology,NTT Data UK Ltd,4024417,"40,827.54",159334590
Dept of Health,MHRA,27/03/2023,Contracted Out Services Miscellaneous,Digital and Technology,NTT Data UK Ltd,5027418,"27,736.20",159334590
Dept of Health,MHRA,27/03/2023,Gas,Corporate,TotalEnergies,295332724/23,"57,168.59",689638949
Dept of Health,MHRA,29/03/2023,Application Services and Maintenance,Safety and Surveillance,Cyber-Duck Ltd,10245,"55,532.28",798776533
Dept of Health,MHRA,29/03/2023,Application Services and Maintenance,Safety and Surveillance,NTT Data UK Ltd,4024294,"37,932.00",159334590
Dept of Health,MHRA,29/03/2023,Application Services and Maintenance,Safety and Surveillance,NTT Data UK Ltd,4024295,"38,331.00",159334590
Dept of Health,MHRA,29/03/2023,Application Services and Maintenance,Safety and Surveillance,NTT Data UK Ltd,5027337,"66,247.68",159334590
Dept of Health,MHRA,31/03/2023,MHRA-administered Seminar Costs,Enablement,Accor UK Business & Leisure Hotels Ltd,206750358,"68,880.00",198502142
Dept of Health,MHRA,31/03/2023,MHRA-administered Seminar Costs,Enablement,Accor UK Business & Leisure Hotels Ltd,206750358A,"-50,980.00",198502142
